bitfinex/quotes_ETHUSD_20241203
["timestamp","ask_amount","ask_price","bid_price","bid_amount"]
[1733241820392,0.26536381,3582.9,3582.2,0.27709533]
[1733241820792,0.2,3582.8,3582.5,2.79134]
[1733241820944,0.06536381,3583.1,3582.5,0.01847837]
[1733241821146,0.06536381,3583.1,3582.9,2.791]
[1733241821369,0.06536381,3582.8,3582.7,2.79117]
[1733241821564,0.06536381,3582.8,3582.7,3.070287]
[1733241821768,0.06536381,3583.1,3582.7,3.070287]
[1733241822006,0.06536381,3582.8,3582.7,3.070287]
[1733241822303,0.06536381,3582.8,3582.4,2.79134]
[1733241822508,0.06536381,3582.8,3582.4,2.79138]
[1733241822663,0.06536381,3582.8,3582.2,0.27709533]
[1733241822664,0.2,3582.7,3582.2,0.27709533]
[1733241822871,0.2,3582.7,3582.4,2.79139]
[1733241823100,0.2,3582.7,3581.8,0.37716814]
[1733241823101,1.772,3582.4,3581.5,3.23286696]
[1733241823300,0.06536381,3582.5,3581.8,2.79183]
[1733241823507,0.06536381,3582.5,3582.2,2.79153]
[1733241823691,0.2,3582.4,3581.6,0.4817067]
[1733241824010,0.06536381,3582.1,3581.8,2.79181]
[1733241824670,0.06536381,3582.1,3581.1,3.23286696]
[1733241824671,1.63146381,3581.9,3581.2,0.37768476]
[1733241824874,1.63146381,3581.9,3581.1,3.23286696]
[1733241824875,0.2,3581.8,3581.4,2.79213]
[1733241825184,0.2,3581.8,3581.1,2.79239]
[1733241825386,1.63146381,3581.9,3580.6,2.79282]
[1733241825387,0.26536381,3581.4,3580.6,2.79282]
[1733241825601,0.26536381,3581.4,3580.7,2.79267]
[1733241825786,0.26536381,3581.2,3580.9,2.79258]
[1733241825982,0.26536381,3581.2,3580.7,2.79273]
[1733241826187,1.80456381,3581.2,3580.5,3.15781567]
[1733241826409,0.2,3580.9,3580.6,0.63906826]
[1733241826608,0.06536381,3581.0,3580.1,1.5014]
[1733241826609,0.06536381,3581.0,3580.3,3.23286696]
[1733241826922,0.26536381,3581.3,3580.9,2.79257]
[1733241827071,0.26536381,3581.3,3580.7,3.23286696]
[1733241827414,0.26536381,3581.3,3581.0,2.79247]
[1733241827624,0.26536381,3581.3,3580.4,3.23562124]
[1733241827917,0.26536381,3581.3,3580.9,2.79257]
[1733241828285,0.26536381,3581.3,3580.5,0.32356212]
[1733241828286,0.26536381,3581.3,3580.7,2.79272]
[1733241828490,0.26536381,3581.3,3580.5,0.32356212]
[1733241828678,0.26536381,3581.3,3580.8,2.79262]
[1733241828679,0.06536381,3581.3,3580.8,2.79262]
[1733241828888,0.26536381,3581.3,3580.6,2.79282]
[1733241829233,0.06536381,3581.3,3581.1,2.79243]
[1733241829595,0.06536381,3581.5,3580.7,0.63705137]
[1733241829800,0.06536381,3581.5,3581.3,2.79221]
[1733241830027,0.06536381,3581.5,3581.0,2.79247]
[1733241830327,0.06536381,3581.5,3581.1,2.79243]
[1733241830512,0.06536381,3581.5,3581.1,3.071673]
[1733241830710,0.06536381,3581.5,3581.3,2.79221]
[1733241831084,0.06536381,3581.5,3581.2,2.79232]
[1733241831822,0.06536381,3581.5,3581.1,0.279243]
[1733241832019,0.06536381,3581.5,3581.3,2.79228]
[1733241832507,0.06536381,3581.5,3581.1,3.071663]
[1733241832684,0.06536381,3581.1,3580.8,2.79266]
[1733241832881,0.06536381,3581.1,3580.5,0.37374499]
[1733241833123,0.06536381,3581.1,3580.9,2.79258]
[1733241833327,0.06536381,3581.1,3580.6,2.79281]
[1733241833635,0.06536381,3581.1,3580.1,4.29456]
[1733241833636,1.5073,3580.8,3580.1,2.79314]
[1733241833847,1.5073,3580.8,3580.2,3.43358744]
[1733241834047,1.5073,3580.8,3580.4,2.79297]
[1733241835239,0.06536381,3580.5,3580.0,0.3765132]
[1733241835396,0.06536381,3580.5,3579.7,4.43282]
[1733241835603,0.06536381,3580.5,3579.8,0.76684412]
[1733241835935,0.06536381,3580.5,3580.4,2.79298]
[1733241836238,0.06536381,3580.5,3580.3,2.79298]
[1733241836453,0.2,3580.6,3580.4,2.79298]
[1733241836654,0.06536381,3580.8,3579.9,3.23562124]
[1733241836859,0.2,3581.0,3580.9,2.79257]
[1733241837027,0.47467535,3582.3,3580.7,3.23562124]
[1733241837028,1.56566381,3581.6,3580.7,3.23562124]
[1733241837358,4.50274068,3582.9,3580.4,2.79298]
[1733241837359,0.06536381,3581.9,3581.8,2.79189]
[1733241837511,0.06536381,3581.6,3581.5,2.7921]
[1733241837916,0.26536381,3581.5,3581.2,2.7923]
[1733241838218,0.06536381,3581.1,3580.9,2.79255]
[1733241838752,0.2,3581.0,3580.3,4.82972124]
[1733241838954,0.06536381,3580.7,3580.6,2.79282]
[1733241839261,0.2,3581.1,3580.6,2.79282]
[1733241839416,0.26536381,3581.1,3580.4,0.48297212]
[1733241839617,0.26536381,3581.1,3581.0,2.79251]
[1733241840329,0.2,3581.1,3581.0,2.79251]
[1733241840540,0.26536381,3581.1,3581.0,2.79251]
[1733241840855,0.26536381,3581.1,3580.4,0.48297212]
[1733241840856,0.26536381,3581.1,3580.8,2.79264]
[1733241841038,0.26536381,3581.1,3581.0,2.79251]
[1733241841240,0.26536381,3581.1,3580.8,0.283872]
[1733241841454,0.26536381,3581.1,3581.0,2.79251]
[1733241841638,0.06536381,3581.3,3581.2,2.79236]
[1733241842466,0.06536381,3581.1,3580.8,3.076512]
[1733241842764,0.2,3581.0,3580.8,2.79264]
[1733241842963,0.0349015,3582.4,3580.0,2.79322]
[1733241842964,0.2,3580.6,3580.0,2.79322]
[1733241843167,0.2,3580.6,3580.4,2.79298]
[1733241843337,0.2,3580.8,3580.5,0.0185253]
[1733241843531,0.2,3580.8,3579.9,4.89902124]
[1733241843736,0.2,3580.5,3580.4,2.79298]
[1733241843938,0.2,3580.7,3580.0,0.48990212]
[1733241844119,0.26536381,3580.5,3580.4,2.79291]
[1733241844558,0.06536381,3580.9,3580.6,2.79282]
[1733241844861,0.06536381,3580.9,3580.8,2.79267]
[1733241845277,0.03330868,3581.3,3580.8,2.79267]
[1733241845278,0.23330868,3581.3,3581.1,2.79243]
[1733241845558,0.23330868,3581.3,3581.2,2.8108682]
[1733241845559,0.03330868,3581.3,3581.2,2.8108682]
[1733241845768,0.03330868,3581.3,3581.2,2.79236]
[1733241846343,0.03330868,3581.3,3581.2,2.81086092]
[1733241846678,8.68e-06,3581.3,3581.2,2.81086092]
[1733241847194,1.91766381,3583.2,3582.6,2.79126]
[1733241847475,1.91766381,3583.2,3582.6,6.02688124]
[1733241847640,0.2,3583.6,3582.6,6.02688124]
[1733241847839,0.06536381,3583.2,3582.6,7.58898124]
[1733241848036,1.80596381,3583.7,3582.6,7.58898124]
[1733241848443,0.06536381,3583.9,3583.5,2.79056]
[1733241848639,1.78206381,3584.3,3583.8,2.79033]
[1733241848870,0.06536381,3584.1,3584.0,2.7901]
[1733241849067,0.2,3584.3,3584.2,2.79002]
[1733241849254,0.06536381,3584.4,3584.3,2.78994]
[1733241849840,0.06536381,3584.4,3583.8,3.51465424]
[1733241849841,0.06536381,3584.2,3584.1,2.7901]
[1733241850490,0.06536381,3584.2,3583.8,6.30493424]
[1733241850778,0.26536381,3584.4,3584.3,2.78994]
[1733241851094,0.26536381,3584.6,3584.5,2.78978]
[1733241852082,0.06536381,3584.6,3584.5,2.78978]
[1733241852388,0.06536381,3584.6,3584.2,3.23562124]
[1733241852605,0.06536381,3584.6,3584.5,2.78978]
[1733241853089,1.7167,3584.8,3584.5,0.27411481]
[1733241853090,0.26536381,3584.8,3584.5,0.27411481]
[1733241853301,0.2,3585.4,3584.7,3.23562124]
[1733241853595,0.06536381,3585.3,3585.1,2.78928]
[1733241853887,0.06536381,3585.3,3585.2,2.78924]
[1733241854185,0.06536381,3585.3,3585.0,2.78937]
[1733241854383,0.2,3585.4,3585.0,2.78937]
[1733241854384,0.06536381,3585.1,3585.0,3.068403]
[1733241854549,0.06536381,3585.3,3585.0,0.279033]
[1733241855244,0.06536381,3585.1,3585.0,3.068433]
[1733241855592,0.06536381,3585.3,3585.0,0.279033]
[1733241855923,0.06536381,3585.3,3585.2,6.02486124]
[1733241856128,0.06536381,3585.3,3585.2,6.65525066]
[1733241856452,0.22023781,3585.7,3585.2,6.65525066]
[1733241856733,0.154874,3585.7,3585.6,2.78893]
[1733241857238,0.18099829,3585.7,3585.6,6.02455124]
[1733241857536,0.18099829,3585.7,3585.6,0.27421881]
[1733241857846,0.06536381,3585.5,3585.3,2.78916]
[1733241858335,0.26536381,3585.5,3585.3,2.78916]
[1733241858498,0.26536381,3585.5,3585.2,2.78923]
[1733241858837,0.26536381,3585.5,3585.1,1.6494]
[1733241859076,0.06536381,3585.5,3584.9,0.35950843]
[1733241859281,0.06536381,3585.5,3585.3,2.78913]
[1733241859732,0.06536381,3585.5,3585.2,3.23562124]
[1733241860175,0.06536381,3585.5,3585.3,2.78914]
[1733241860335,0.06536381,3585.5,3585.2,3.23562124]
[1733241860873,0.06536381,3585.5,3585.2,6.02483124]
[1733241861063,0.06536381,3585.5,3585.1,2.78931]
[1733241861382,0.06536381,3585.5,3585.0,0.51468297]
[1733241861383,0.02497156,3585.4,3585.0,3.30406297]
[1733241861535,0.2,3585.3,3584.8,6.02514124]
[1733241861886,0.22498833,3585.3,3584.8,3.23562124]
[1733241862047,0.06536381,3585.1,3584.7,2.78963]
[1733241862234,0.06536381,3585.1,3584.5,2.78977]
[1733241862438,0.06536381,3585.1,3584.7,2.78961]
[1733241863266,0.06536381,3585.1,3584.5,3.55732912]
[1733241863538,0.02482289,3585.0,3584.9,2.78947]
[1733241863733,2.005874,3585.7,3585.2,2.78922]
[1733241863734,0.06536381,3585.4,3585.2,2.78922]
[1733241863967,0.06536381,3585.4,3585.2,3.20530211]
[1733241864338,0.06536381,3585.4,3585.2,0.41608211]
[1733241864544,0.06536381,3585.4,3585.3,2.78916]
[1733241864935,0.06536381,3585.4,3585.2,0.41608211]
[1733241865276,0.06536381,3585.4,3585.3,2.78916]
[1733241865580,2.005874,3585.7,3585.6,2.78893]
[1733241865581,0.22023781,3585.7,3585.6,2.78893]
[1733241865877,0.06536381,3585.5,3585.3,3.70906545]
[1733241866078,0.154874,3585.7,3585.3,3.70906545]
[1733241866379,0.154874,3585.7,3585.2,0.41608211]
[1733241866593,0.154874,3585.7,3583.8,0.03463619]
[1733241866594,0.06536381,3584.6,3584.0,1.6488]
[1733241866739,0.06536381,3584.0,3583.5,1.6488]
[1733241866945,0.06536381,3584.0,3583.5,4.43933]
[1733241867278,0.06536381,3584.0,3583.6,2.79049]
[1733241867491,0.06536381,3584.0,3583.7,0.76749112]
[1733241867637,0.2,3583.9,3583.7,0.76749112]
[1733241867939,0.2,3583.9,3583.8,2.79033]
[1733241868136,0.06536381,3584.0,3583.9,2.79025]
[1733241868563,0.06536381,3584.0,3583.8,3.23562124]
[1733241868968,0.06536381,3584.0,3583.9,2.79023]
[1733241869188,0.06536381,3584.0,3583.8,3.23562124]
[1733241869342,0.06536381,3584.0,3583.8,6.02594124]
[1733241869540,0.2,3584.5,3583.8,5.46361536]
[1733241869745,0.2,3584.5,3584.0,3.23562124]
[1733241869944,0.2,3584.5,3584.2,2.79001]
[1733241870252,0.26536381,3584.5,3584.0,3.23562124]
[1733241870778,0.06536381,3584.3,3584.0,3.23562124]
[1733241870941,0.06536381,3584.3,3584.1,0.54636154]
[1733241871147,0.2,3584.5,3584.3,2.78987]
[1733241871447,0.06536381,3584.7,3584.6,2.78971]
[1733241871880,0.2,3584.6,3584.2,2.78999]
[1733241872181,0.06536381,3584.0,3583.6,3.23562124]
[1733241872396,0.2,3584.1,3583.9,2.79025]
[1733241872540,0.2,3584.4,3584.2,2.78996]
[1733241872744,0.06536381,3584.4,3584.3,2.78987]
[1733241872953,0.06536381,3584.6,3584.5,2.78978]
[1733241873248,0.2,3585.0,3584.5,2.78978]
[1733241873249,0.06536381,3584.8,3584.5,2.78978]
[1733241873447,0.06536381,3584.8,3584.7,2.78963]
[1733241874874,0.06536381,3584.4,3584.0,3.23562124]
[1733241875061,0.41192675,3585.6,3583.5,1.5905]
[1733241875062,0.26536381,3584.0,3583.6,3.23562124]
[1733241875262,0.26536381,3584.0,3583.4,2.79062]
[1733241875496,0.26536381,3583.8,3583.2,4.82612124]
[1733241875814,0.06536381,3583.6,3583.2,5.30873336]
[1733241875963,0.06536381,3583.6,3583.5,2.79056]
[1733241876359,0.06536381,3583.6,3583.5,2.79055]
[1733241876659,0.26536381,3584.0,3583.3,2.79072]
[1733241876863,1.6271,3584.2,3583.3,2.79072]
[1733241876864,0.06536381,3583.9,3583.8,2.79033]
[1733241877062,0.26536381,3584.1,3584.0,2.79017]
[1733241877263,0.26536381,3584.1,3583.8,0.70102911]
[1733241877463,0.26536381,3584.1,3582.6,2.79124]
[1733241877464,0.06536381,3583.5,3582.9,2.79098]
[1733241877704,0.06536381,3583.5,3583.4,2.79064]
[1733241877899,1.92476381,3583.8,3583.5,2.79052]
[1733241878100,0.06536381,3583.6,3583.5,2.79052]
[1733241878677,0.06536381,3583.6,3582.9,0.36517221]
[1733241878879,0.06536381,3583.6,3583.0,0.51029934]
[1733241879177,0.06536381,3583.6,3583.5,2.79056]
[1733241879383,1.92476381,3583.8,3583.0,3.30120934]
[1733241879704,0.06536381,3583.8,3583.7,2.7904]
[1733241879887,0.26536381,3583.8,3583.7,2.7904]
[1733241880225,0.26536381,3583.8,3583.5,2.79056]
[1733241880506,0.26536381,3583.8,3583.5,0.558132]
[1733241880878,0.26536381,3583.8,3583.6,2.79046]
[1733241881083,0.26536381,3583.8,3583.7,2.79041]
[1733241881504,0.26536381,3583.8,3583.5,3.348672]
[1733241881717,0.26536381,3583.8,3583.7,2.79041]
[1733241881889,0.26536381,3583.8,3583.1,3.23562124]
[1733241881890,0.06536381,3583.8,3583.1,3.23562124]
[1733241882066,0.06536381,3583.8,3583.5,2.79055]
[1733241882415,0.06536381,3583.8,3583.6,2.79047]
[1733241882709,0.06536381,3583.8,3583.7,2.79041]
[1733241883070,0.06536381,3583.8,3583.2,2.79076]
[1733241883408,0.06536381,3584.0,3583.3,0.60263812]
[1733241883709,0.06536381,3583.7,3583.6,2.79049]
[1733241884373,0.06536381,3584.3,3583.6,1.5852]
[1733241884714,0.06536381,3584.3,3584.2,2.79002]
[1733241885012,0.2,3584.4,3583.6,1.60365014]
[1733241885166,0.06536381,3584.2,3584.1,2.79007]
[1733241885612,0.26536381,3584.0,3583.2,4.35903]
[1733241885860,0.65554578,3585.2,3582.7,2.79116]
[1733241885861,0.2,3583.7,3583.4,2.79064]
[1733241886059,0.06536381,3583.6,3582.8,1.5683]
[1733241886228,1.5263,3583.8,3582.8,1.5683]
[1733241886229,0.06536381,3583.4,3582.9,2.79103]
[1733241886428,0.06536381,3583.4,3583.3,2.79072]
[1733241886636,0.2,3583.5,3583.4,2.79064]
[1733241886834,0.06536381,3583.6,3583.5,2.79056]
[1733241887141,0.06536381,3583.6,3583.0,0.47221375]
[1733241887346,0.06536381,3583.6,3583.5,2.79056]
[1733241887915,0.06536381,3583.4,3583.0,0.47221375]
[1733241888120,0.26536381,3583.2,3583.0,0.47221375]
[1733241888463,0.26536381,3583.2,3582.5,1.6455]
[1733241888648,0.26536381,3582.8,3582.1,1.6644]
[1733241888956,0.26536381,3582.8,3582.7,2.79119]
[1733241889336,0.26536381,3582.8,3582.1,2.03720251]
[1733241889337,0.26536381,3582.8,3582.1,1.6644]
[1733241889534,0.2,3582.3,3581.9,2.79176]
[1733241889736,0.2,3582.3,3582.0,0.279176]
[1733241889924,0.2,3582.3,3581.6,0.3773864]
[1733241890264,0.2,3582.3,3581.5,4.90002124]
[1733241890265,0.06536381,3582.2,3582.1,2.79165]
[1733241893680,0.06536381,3582.9,3582.8,2.79111]
[1733241895959,0.26536381,3583.0,3582.9,2.79103]
[1733241896606,0.06536381,3583.0,3582.9,2.79103]
[1733241896739,0.06536381,3583.0,3582.9,3.349256]
[1733241897693,0.26536381,3583.0,3582.9,3.349256]
[1733241897836,0.26536381,3583.0,3582.9,2.79103]
[1733241899687,0.26536381,3583.0,3582.1,1.5453]
[1733241899688,0.06536381,3582.2,3581.6,5.1440423]
[1733241899978,0.06536381,3582.2,3582.1,2.79165]
[1733241900186,0.06536381,3582.8,3582.7,2.79119]
[1733241900438,0.06536381,3582.8,3582.7,3.349451]
[1733241900746,0.26536381,3583.1,3583.0,2.79095]
[1733241900887,0.2,3583.1,3583.0,2.79095]
[1733241901237,1.73196381,3583.6,3583.3,2.79072]
[1733241901408,0.45832136,3583.8,3583.3,2.79072]
[1733241901409,0.25832136,3583.8,3583.7,2.79041]
[1733241901590,0.25832136,3583.8,3583.7,6.02603124]
[1733241902090,0.25832136,3583.8,3583.7,2.79041]
[1733241902488,0.26536381,3583.7,3582.8,4.85932124]
[1733241902692,0.25832136,3583.8,3583.7,2.79041]
[1733241902900,0.32368517,3583.8,3583.7,3.41579023]
[1733241903103,0.25832136,3583.8,3583.7,3.41579023]
[1733241904705,0.06536381,3583.9,3583.8,2.79033]
[1733241904917,0.26536381,3583.9,3583.8,2.79033]
[1733241905096,0.06536381,3584.1,3584.0,2.79017]
[1733241905304,0.26536381,3584.6,3584.2,2.79002]
[1733241905610,0.06536381,3584.3,3584.2,2.79002]
[1733241905808,0.26536381,3584.6,3584.5,2.78978]
[1733241906244,0.2,3584.6,3584.5,2.78978]
[1733241906408,0.06536381,3584.8,3584.7,2.78963]
[1733241906596,0.154874,3585.7,3585.0,2.7894]
[1733241906597,0.26536381,3585.1,3585.0,2.7894]
[1733241906805,0.26536381,3585.1,3585.0,2.80783726]
[1733241907213,0.26536381,3585.1,3585.0,2.7894]
[1733241907652,0.26536381,3585.3,3585.2,2.78924]
[1733241908503,0.06536381,3585.3,3585.2,2.78924]
[1733241908799,0.26536381,3585.3,3585.2,2.78924]
[1733241909248,0.06536381,3585.3,3585.2,6.04329166]
[1733241909427,0.06536381,3585.3,3585.2,6.02486124]
[1733241909629,0.354874,3585.7,3585.2,6.02486124]
[1733241909630,0.154874,3585.7,3585.6,2.78893]
[1733241909798,0.154874,3585.7,3585.6,6.02455124]
[1733241909998,0.2,3585.5,3585.4,2.78907]
[1733241910200,0.26536381,3585.3,3584.9,2.78941]
[1733241910517,0.2,3584.9,3584.8,2.78952]
[1733241910712,0.06536381,3585.0,3584.9,2.78947]
[1733241910898,0.06536381,3585.2,3585.1,2.78932]
[1733241911100,0.154874,3585.7,3585.1,0.01843165]
[1733241911399,0.2,3585.5,3584.8,3.51457324]
[1733241911646,0.2,3585.5,3585.4,2.78908]
[1733241912131,0.2,3585.5,3585.4,3.067988]
[1733241913405,0.2,3585.5,3585.4,0.278908]
[1733241913656,0.06536381,3585.4,3585.2,2.78922]
[1733241913859,0.2,3585.5,3585.4,2.78908]
[1733241914155,0.42023781,3585.7,3585.2,2.78924]
[1733241914446,0.22023781,3585.7,3585.6,2.78893]
[1733241916356,0.42023781,3585.7,3585.6,2.78893]
[1733241916650,0.42023781,3585.7,3585.6,3.067823]
[1733241917304,0.42023781,3585.7,3585.6,0.278893]
[1733241917560,0.06536381,3585.1,3584.8,3.068422]
[1733241917846,0.26536381,3584.9,3584.8,0.278952]
[1733241918002,0.06536381,3584.6,3584.0,3.23562124]
[1733241918211,0.06536381,3584.3,3584.1,2.79007]
[1733241918445,0.06536381,3584.0,3583.9,1.5177]
[1733241918602,0.06536381,3584.0,3583.7,2.79041]
[1733241918803,0.06536381,3584.0,3583.8,2.79029]
[1733241919004,0.2,3584.9,3584.1,1.6338]
[1733241919246,0.154874,3585.7,3584.9,1.6338]
[1733241919443,0.154874,3585.7,3585.6,3.23562124]
[1733241919818,0.154874,3585.7,3585.6,2.78893]
[1733241920159,0.154874,3585.7,3585.6,6.02455124]
[1733241920340,0.154874,3585.7,3585.6,6.60560135]
[1733241920541,0.154874,3585.7,3585.6,0.58105011]
[1733241920856,0.06536381,3585.4,3584.8,3.23562124]
[1733241921143,0.06536381,3585.4,3585.3,2.78916]
[1733241921354,0.154874,3585.7,3585.6,2.78893]
[1733241921650,0.154874,3585.7,3585.6,6.02455124]
[1733241923035,0.154874,3585.7,3585.6,2.78893]
[1733241923207,0.154874,3585.7,3585.5,2.78901]
[1733241923208,0.06536381,3585.6,3585.5,2.78901]
[1733241923613,0.06536381,3585.3,3585.2,2.78916]
[1733241923906,0.06536381,3585.3,3585.2,6.02478124]
[1733241924248,0.06536381,3585.6,3585.5,2.78901]
[1733241924406,0.06536381,3585.6,3585.5,3.67038912]
[1733241925154,1.67046381,3585.6,3585.5,0.88137912]
[1733241925312,1.67046381,3585.6,3585.5,2.78901]
[1733241925708,0.06536381,3585.6,3585.5,2.78901]
[1733241926551,0.154874,3585.7,3585.6,2.78893]
[1733241926749,0.154874,3585.7,3585.6,6.02455124]
[1733241934060,0.06536381,3586.2,3586.1,2.78854]
[1733241934292,0.06536381,3586.2,3586.1,6.58188624]
[1733241935341,0.06536381,3586.2,3585.6,2.78889]
[1733241935342,1.68006381,3586.2,3585.9,2.78869]
[1733241935546,0.06536381,3586.0,3585.9,2.78869]
[1733241936151,0.14145258,3586.0,3585.9,2.78869]
[1733241936685,0.06536381,3586.0,3585.9,2.78869]
[1733241938490,0.06536381,3586.0,3585.7,3.23562124]
[1733241938662,0.06536381,3586.0,3585.9,2.7887]
[1733241938861,0.06536381,3586.2,3586.1,2.78854]
[1733241939065,0.06536381,3586.2,3586.1,6.04257523]
[1733241939361,0.06536381,3586.4,3586.3,2.78838]
[1733241939876,0.06536381,3586.6,3586.3,2.78838]
[1733241940084,0.06536381,3586.8,3586.7,2.78807]
[1733241941682,0.3258159,3586.8,3586.7,2.78807]
[1733241941896,0.06536381,3586.8,3586.7,2.78807]
[1733241942702,0.06536381,3587.0,3586.9,2.78792]
[1733241943009,0.32578472,3587.0,3586.9,2.78792]
[1733241943219,0.32575847,3587.0,3586.9,2.78792]
[1733241943379,0.06536381,3587.0,3586.9,2.78792]
[1733241943576,0.3257506,3587.0,3586.7,2.788]
[1733241943924,0.06536381,3587.0,3586.9,2.78792]
[1733241944473,0.06536381,3587.0,3586.7,0.32356212]
[1733241944709,0.06536381,3587.0,3586.9,2.78792]
[1733241945096,0.32577087,3587.0,3586.9,2.78792]
[1733241945606,0.06536381,3587.0,3586.9,2.78792]
[1733241946174,0.06536381,3587.0,3586.8,2.54737731]
[1733241946402,0.06536381,3587.0,3586.8,5.33535731]
[1733241946579,0.06536381,3587.0,3586.8,2.54737731]
[1733241946799,0.06536381,3587.0,3586.8,5.33536731]
[1733241947120,0.06536381,3587.0,3586.9,2.78792]
[1733241947321,0.32576088,3587.0,3586.9,2.78792]
[1733241947494,0.32576088,3587.0,3586.8,2.54737731]
[1733241947700,0.06536381,3587.0,3586.9,2.78792]
[1733241947993,1.99155542,3587.0,3586.8,2.54737731]
[1733241948212,1.99155542,3587.0,3586.9,2.78792]
[1733241948386,1.99176775,3587.0,3586.9,2.78792]
[1733241949329,0.32596775,3587.0,3586.9,3.32144973]
[1733241949497,0.26060394,3587.0,3586.9,3.32144973]
[1733241949703,0.06536381,3587.2,3586.9,3.32144973]
[1733241949913,0.06536381,3587.4,3587.3,2.78761]
[1733241950113,0.06536381,3587.4,3587.3,5.33498731]
[1733241950320,0.06536381,3587.4,3587.3,5.98509881]
[1733241951330,0.06536381,3587.4,3587.3,5.33498731]
[1733241951538,0.06536381,3587.4,3587.3,6.91678731]
[1733241951693,0.06536381,3587.6,3587.5,2.78742]
[1733241952230,0.26059989,3587.6,3587.5,2.78742]
[1733241952435,0.06536381,3587.6,3587.5,2.78742]
[1733241952605,0.50779151,3588.3,3587.3,2.54737731]
[1733241952789,0.06536381,3587.8,3587.7,4.39143]
[1733241952994,0.06536381,3587.8,3587.7,2.78723]
[1733241953847,0.06536381,3587.8,3587.7,5.33460731]
[1733241954041,0.06536381,3588.2,3588.1,2.78699]
[1733241954198,0.06536381,3588.2,3588.1,5.33436731]
[1733241954394,0.06536381,3588.2,3588.1,7.64875646]
[1733241955549,0.06536381,3588.2,3588.1,10.19613377]
[1733241955846,0.06536381,3588.2,3588.1,7.64875646]
[1733241956155,0.06536381,3588.4,3588.3,2.78683]
[1733241956289,0.06536381,3588.4,3588.3,3.15648208]
[1733241957961,0.06536381,3588.4,3588.2,2.78686]
[1733241958110,0.06536381,3588.4,3588.1,2.54737731]
[1733241958311,0.06536381,3588.4,3588.3,2.78683]
[1733241960277,0.06536381,3588.4,3588.1,2.54737731]
[1733241960428,1.16062327,3590.9,3590.4,8.14741992]
[1733241960616,2.90739707,3591.4,3590.4,8.14741992]
[1733241960617,1.05897662,3590.8,3590.5,1.5987]
[1733241960816,0.2075853,3591.2,3590.8,2.78482]
[1733241961165,2.90739707,3591.4,3590.8,2.78482]
[1733241961454,0.01645922,3591.8,3590.8,2.54737731]
[1733241962015,1.85482498,3591.9,3590.8,2.54737731]
[1733241962237,4.37984,3591.9,3590.8,2.54737731]
[1733241962553,0.447984,3591.8,3590.8,2.54737731]
[1733241963225,1.5359,3591.6,3590.8,2.54737731]
[1733241963437,0.55,3591.5,3590.4,2.54737731]
[1733241963648,0.55,3591.5,3590.4,2.78518]
[1733241963864,0.55,3591.5,3590.2,3.21825123]
[1733241964018,0.05776657,3591.4,3590.4,2.78519]
[1733241964421,0.05776657,3591.4,3590.5,2.78511]
[1733241964854,0.05776657,3591.4,3590.3,0.63645849]
[1733241965017,0.05776657,3591.4,3590.6,2.78504]
[1733241965361,0.05776657,3591.4,3590.6,3.21825123]
[1733241965661,1.5359,3591.6,3590.9,2.7848]
[1733241965816,1.5359,3591.6,3590.7,0.54718274]
[1733241965817,0.05771935,3591.3,3590.7,0.54718274]
[1733241966024,1.5359,3591.6,3590.7,0.54718274]
[1733241966025,1.5359,3591.6,3591.1,2.78464]
[1733241966231,0.0585379,3591.5,3591.1,2.78464]
[1733241966433,0.0585379,3591.5,3591.0,4.87655123]
[1733241966652,1.66,3592.1,3591.4,3.21825123]
[1733241967316,1.36925925,3592.1,3591.4,3.21825123]
[1733241967721,1.36925925,3592.1,3591.4,6.00267123]
[1733241968021,1.36925925,3592.1,3591.4,3.21825123]
[1733241969118,0.2,3592.3,3591.0,3.21825123]
[1733241969318,0.55,3591.8,3590.6,3.21825123]
[1733241969569,2.98379,3592.3,3590.7,0.32182512]
[1733241969570,0.55,3592.3,3590.7,0.32182512]
[1733241969863,0.55,3591.7,3590.6,3.21825123]
[1733241970032,0.11645922,3592.1,3590.6,3.21825123]
[1733241970360,0.11645922,3592.1,3590.5,2.78505]
[1733241970361,1.6482,3591.6,3590.5,2.78505]
[1733241970558,1.6482,3591.6,3590.6,2.78504]
[1733241970743,1.6482,3591.6,3590.5,2.7851]
[1733241970918,0.55,3591.5,3590.3,1.6082]
[1733241971260,0.55,3591.5,3590.5,2.7851]
[1733241971461,0.55,3591.5,3590.6,2.78501]
[1733241971766,0.56645922,3591.5,3590.6,2.78501]
[1733241971982,0.55,3591.5,3590.6,2.78501]
[1733241972279,0.55,3591.5,3590.7,3.49675223]
[1733241972657,0.01645922,3591.5,3590.7,3.21825123]
[1733241972979,4.43248,3591.6,3590.7,3.21825123]
[1733241973183,1.6482,3591.6,3590.7,3.21825123]
[1733241973843,0.55,3591.5,3590.3,6.00345123]
[1733241974042,3.33458,3591.2,3590.3,3.21825123]
[1733241974256,0.55,3591.2,3590.3,3.21825123]
[1733241974547,0.55,3591.2,3590.3,6.00352123]
[1733241974745,0.55,3591.2,3590.3,3.21825123]
[1733241974982,1.652,3590.7,3589.8,6.36367244]
[1733241975286,1.652,3590.7,3590.0,2.7855]
[1733241975495,1.652,3590.7,3590.2,3.21825123]
[1733241975687,0.55,3591.2,3590.2,3.21825123]
[1733241975688,2.1125,3591.2,3590.2,3.21825123]
[1733241975889,0.55,3591.0,3589.8,3.57802244]
[1733241976094,3.33496,3590.8,3589.8,3.57802244]
[1733241976248,1.5579,3590.3,3589.8,0.35977121]
[1733241976447,1.5579,3590.3,3589.4,6.00416123]
[1733241976759,1.5579,3590.3,3589.4,3.21825123]
[1733241976964,1.5579,3590.3,3589.4,6.00423123]
[1733241977162,1.5579,3590.3,3589.6,2.78581]
[1733241977509,2.80183922,3590.2,3589.4,0.60042312]
[1733241977800,1.552,3590.1,3588.7,0.36870235]
[1733241977981,0.55,3589.8,3588.6,4.33330723]
[1733241978146,1.56845922,3589.7,3588.6,3.21825123]
[1733241978487,0.55,3589.6,3588.7,0.48195512]
[1733241978689,0.55,3589.6,3588.8,0.02786203]
[1733241978902,1.552,3589.7,3589.0,2.78627]
[1733241979050,1.552,3589.7,3589.0,2.78622]
[1733241980098,1.552,3589.7,3588.7,0.48195512]
[1733241980099,1.552,3589.7,3589.1,2.81402909]
[1733241980305,1.552,3589.7,3589.2,0.28140291]